bitfinex/quotes_ETHUSD_20250814
["timestamp","ask_amount","ask_price","bid_price","bid_amount"]
[1755177238652,0.1096,4572.5,4571.8,0.1096]
[1755177239552,0.1042,4574.1,4571.7,0.57528]
[1755177239782,0.1096,4572.4,4571.8,0.45967322]
[1755177239994,0.1096,4572.4,4571.9,2.4644]
[1755177240306,0.1042,4574.7,4572.0,2.92407226]
[1755177240467,0.1096,4573.3,4572.7,0.1096]
[1755177240652,0.1096,4573.3,4572.8,5.308]
[1755177241093,0.1096,4572.9,4572.8,5.308]
[1755177241263,0.4664,4574.9,4572.8,8.2102]
[1755177241612,0.04143523,4575.1,4573.0,2.1867483]
[1755177241816,0.04143523,4575.1,4573.1,3.96594863]
[1755177242121,0.04143523,4575.1,4574.4,2.18607889]
[1755177242278,0.04143523,4575.1,4574.5,8.2072]
[1755177242487,0.0022,4574.6,4574.5,10.39323126]
[1755177242680,0.0022,4574.6,4574.5,8.2072]
[1755177243088,0.03308168,4575.1,4574.5,9.02792]
[1755177243279,0.03308168,4575.1,4574.5,9.02872]
[1755177243485,0.002,4574.6,4574.5,9.02872]
[1755177243706,0.002,4574.6,4574.5,11.21475126]
[1755177244125,0.002,4574.6,4574.5,9.02172]
[1755177244330,0.002,4574.6,4574.5,5.2988]
[1755177244497,0.002,4574.6,4574.5,0.0008]
[1755177244829,0.002,4574.6,4574.5,10.38603126]
[1755177245010,0.03308168,4575.1,4574.5,8.2]
[1755177245181,0.03308168,4575.1,4575.0,2.18579234]
[1755177245380,0.03308168,4575.1,4575.0,7.7082]
[1755177245617,0.03308168,4575.1,4575.0,9.89399234]
[1755177245793,0.03308168,4575.1,4575.0,4.806]
[1755177246118,0.03308168,4575.1,4575.0,10.1]
[1755177246414,0.03308168,4575.1,4575.0,13.0022]
[1755177246646,0.03308168,4575.1,4575.0,14.30242]
[1755177247343,0.03308168,4575.1,4575.0,12.9982]
[1755177247516,0.03308168,4575.1,4575.0,7.7082]
[1755177247722,0.03308168,4575.1,4575.0,10.5328]
[1755177247948,0.03308168,4575.1,4575.0,10.095]
[1755177248153,0.03308168,4575.1,4575.0,10.5328]
[1755177248446,0.03308168,4575.1,4575.0,14.05048]
[1755177249257,0.03308168,4575.1,4575.0,16.23627234]
[1755177250665,0.03308168,4575.1,4575.0,14.05048]
[1755177250842,0.03308168,4575.1,4575.0,10.5238]
[1755177251160,0.03308168,4575.1,4575.0,12.9882]
[1755177251324,0.03308168,4575.1,4575.0,13.0978]
[1755177251835,0.03308168,4575.1,4575.0,15.28359234]
[1755177252041,0.002,4575.6,4575.5,2.18555349]
[1755177252252,0.002,4575.6,4575.5,5.278]
[1755177252562,0.002,4575.6,4575.5,5.3876]
[1755177252742,0.002,4575.6,4575.5,8.2898]
[1755177252929,0.002,4575.6,4575.5,0.1096]
[1755177253136,0.002,4575.6,4575.5,5.274]
[1755177253323,0.002,4575.6,4575.5,8.7036]
[1755177253648,0.002,4575.6,4575.5,8.7044]
[1755177254061,0.002,4575.6,4575.5,5.8002]
[1755177254414,0.002,4575.6,4575.3,0.1096]
[1755177254637,3.0,4575.4,4575.3,5.271]
[1755177254835,2.7461,4575.4,4575.3,2.3632]
[1755177255048,7.93170125,4575.4,4575.3,2.3632]
[1755177255269,7.93170125,4575.4,4573.2,4.804]
[1755177255270,3.0,4575.3,4573.2,4.804]
[1755177255414,2.18660485,4573.3,4573.2,4.804]
[1755177255612,0.4664,4574.0,4573.3,5.269]
[1755177255933,2.18655704,4573.4,4573.3,5.269]
[1755177256133,5.18660485,4573.3,4573.2,4.804]
[1755177256314,3.0,4573.2,4571.2,2.4644]
[1755177256516,0.4664,4573.3,4571.3,5.55622]
[1755177256747,0.4164,4573.3,4571.3,5.55622]
[1755177256949,2.60301323,4573.3,4571.3,5.55622]
[1755177257151,3.0,4573.2,4571.4,0.02187513]
[1755177257448,0.4164,4573.3,4571.5,5.264]
[1755177257449,3.4164,4573.3,4571.5,5.264]
[1755177257651,0.4164,4573.3,4571.5,5.264]
[1755177258026,2.18674735,4573.1,4571.5,5.264]
[1755177258227,21.13196333,4575.1,4571.6,0.02187417]
[1755177258426,2.18661751,4573.3,4571.7,2.4644]
[1755177258739,2.1856466,4575.4,4571.7,2.4644]
[1755177258740,0.4268,4574.5,4571.8,0.4378]
[1755177258940,2.18607904,4574.4,4572.1,2.18716919]
[1755177259145,0.4268,4574.5,4572.2,5.261]
[1755177259462,0.4268,4574.5,4572.3,0.5261]
[1755177259758,0.4268,4574.5,4572.3,2.9905]
[1755177260259,0.4288,4575.6,4572.4,0.4378]
[1755177260461,0.4288,4575.6,4572.5,7.2684]
[1755177260627,0.002,4575.6,4572.6,2.9022]
[1755177260956,0.002,4575.6,4572.8,2.18684394]
[1755177261125,0.002,4575.6,4573.7,2.18640979]
[1755177261325,0.002,4575.6,4573.7,2.4644]
[1755177261557,0.4288,4575.6,4573.8,5.255]
[1755177262271,2.18577722,4575.1,4573.9,5.253]
[1755177262563,0.4288,4575.6,4574.0,5.253]
[1755177262764,0.4288,4575.6,4574.1,5.252]
[1755177263758,0.4288,4575.6,4574.2,5.249]
[1755177263958,0.4288,4575.6,4572.5,2.3154]
[1755177264134,0.4288,4575.6,4572.6,5.248]
[1755177264333,0.4288,4575.6,4572.7,0.02186891]
[1755177264545,0.4288,4575.6,4572.6,5.248]
[1755177264976,0.1096,4573.2,4572.6,5.248]
[1755177265273,0.1096,4573.2,4572.7,2.78956891]
[1755177265274,0.10816628,4573.2,4572.7,2.78956891]
[1755177265568,0.1096,4573.6,4573.1,0.1096]
[1755177265895,0.1096,4573.6,4572.8,1.28899489]
[1755177265896,0.4268,4574.3,4572.5,0.32938]
[1755177266042,0.1096,4573.2,4572.6,5.244]
[1755177266471,0.1096,4573.2,4572.7,0.02186891]
[1755177266782,0.1096,4573.5,4572.8,0.1096]
[1755177266968,0.1096,4573.8,4573.1,0.1096]
[1755177267271,0.1096,4573.8,4572.9,3.57983]
[1755177267272,0.4268,4575.5,4573.2,2.7677]
[1755177267439,0.1096,4574.1,4573.5,0.1096]
[1755177267641,0.002,4575.6,4573.6,8.02956461]
[1755177267842,0.002,4575.6,4573.7,2.3154]
[1755177268141,0.002,4575.6,4573.8,5.92284]
[1755177269150,0.002,4575.6,4573.9,5.236]
[1755177269677,0.4268,4575.5,4574.0,5.236]
[1755177269877,0.4268,4575.5,4574.1,5.236]
[1755177270043,0.002,4575.6,4574.2,5.234]
[1755177270638,0.002,4575.6,4574.3,5.233]
[1755177271903,0.002,4575.6,4574.4,5.229]
[1755177272500,0.002,4575.6,4574.4,5.2298]
[1755177272797,0.002,4575.6,4574.5,7.5424]
[1755177273103,0.002,4575.6,4574.5,12.3464]
[1755177273672,0.002,4575.6,4574.6,0.4523]
[1755177273972,0.002,4575.6,4574.7,2.3154]
[1755177274470,0.002,4575.6,4574.8,0.4523]
[1755177274674,0.002,4575.6,4574.9,2.59217]
[1755177274972,0.002,4575.6,4575.0,0.4523]
[1755177275311,0.4268,4578.8,4575.1,2.3154]
[1755177275510,0.4268,4578.8,4575.2,0.4523]
[1755177275806,0.4268,4578.1,4575.3,7.5354]
[1755177275997,0.4268,4578.1,4575.4,0.79877]
[1755177276202,0.4298,4577.6,4575.4,0.79877]
[1755177277075,0.4268,4577.5,4575.5,0.02185553]
[1755177277279,0.4268,4577.5,4575.6,5.216]
[1755177277474,0.4268,4577.5,4575.3,2.3154]
[1755177277724,0.1096,4575.6,4575.3,2.3154]
[1755177277889,0.003,4577.6,4575.5,2.7677]
[1755177278075,0.1096,4576.0,4575.5,2.7677]
[1755177278427,0.1096,4576.0,4575.6,2.7677]
[1755177278714,0.003,4577.6,4575.7,2.7677]
[1755177279012,0.1096,4576.2,4575.7,2.7677]
[1755177279170,0.1096,4576.2,4575.4,5.214]
[1755177279378,0.1096,4576.2,4575.5,2.84776]
[1755177280295,0.003,4577.6,4575.5,2.84776]
[1755177280503,0.003,4577.6,4575.6,0.4523]
[1755177281209,0.003,4577.6,4575.7,5.206]
[1755177281414,0.1096,4576.0,4575.7,5.206]
[1755177281610,0.1096,4576.2,4575.8,2.7677]
[1755177281813,0.1096,4576.2,4575.9,2.7677]
[1755177282113,0.1096,4576.2,4576.0,2.3154]
[1755177282675,0.1096,4576.2,4576.1,5.203]
[1755177282905,0.003,4577.6,4576.1,7.9715]
[1755177283076,0.003,4577.6,4576.2,0.79715]
[1755177283077,0.1096,4576.4,4576.2,0.79715]
[1755177283302,0.1096,4576.4,4576.2,3.11255]
[1755177283996,0.1096,4576.4,4576.3,2.7677]
[1755177284211,0.1096,4576.4,4576.2,0.79715]
[1755177284381,0.1096,4576.4,4576.3,7.9647]
[1755177285007,0.1096,4576.4,4576.3,2.3154]
[1755177285221,0.1096,4576.4,4576.3,5.196]
[1755177285581,0.09436973,4576.4,4576.3,2.3154]
[1755177285780,0.09436973,4576.4,4576.3,5.195]
[1755177286224,0.09436973,4576.4,4576.3,7.9627]
[1755177286378,0.09436973,4576.4,4576.3,8.75905]
[1755177288414,0.003,4577.6,4576.3,8.75905]
[1755177288615,0.1096,4576.8,4576.3,3.56405]
[1755177288818,0.1096,4576.8,4576.4,7.9537]
[1755177289019,0.1096,4576.8,4576.4,5.186]
[1755177289227,0.1096,4576.8,4576.5,2.7677]
[1755177289409,0.1096,4576.8,4576.4,5.186]
[1755177289608,0.1096,4576.8,4576.6,2.7677]
[1755177289916,0.1096,4576.8,4576.7,3.56307]
[1755177290220,0.003,4577.6,4576.7,3.56307]
[1755177290518,0.003,4577.6,4576.8,4.802]
[1755177291284,0.003,4577.6,4576.9,2.3154]
[1755177291516,0.003,4577.6,4577.0,5.179]
[1755177291682,0.003,4577.6,4577.0,5.88643276]
[1755177291882,0.003,4577.6,4577.1,2.6958]
[1755177292102,0.003,4577.6,4577.2,2.6958]
[1755177292283,0.003,4577.6,4577.3,2.6958]
[1755177292596,0.003,4577.6,4577.4,2.6958]
[1755177292783,0.003,4577.6,4577.5,2.96538]
[1755177293186,0.003,4577.6,4577.5,2.96618]
[1755177293384,0.003,4577.6,4577.5,0.0008]
[1755177293684,0.003,4577.6,4577.5,7.8716]
[1755177293885,0.003,4577.6,4577.5,8.19810386]
[1755177294094,0.003,4577.6,4577.5,0.0008]
[1755177294301,0.003,4577.6,4577.5,8.19330386]
[1755177294501,0.002,4577.8,4577.5,9.01263425]
[1755177294705,0.003,4578.9,4577.6,3.04414936]
[1755177294922,0.003,4578.9,4577.7,2.71764503]
[1755177295122,0.003,4578.9,4577.8,0.74437986]
[1755177295430,0.4268,4581.9,4578.0,3.0]
[1755177295730,2.60932149,4581.9,4578.2,3.0]
[1755177295937,2.18254927,4581.8,4578.3,0.02184216]
[1755177296092,0.4268,4581.9,4578.5,3.0]
[1755177296292,0.4268,4581.9,4578.6,0.46144073]
[1755177296611,2.18259833,4581.7,4579.6,2.18359579]
[1755177296823,2.1829468,4581.0,4579.7,5.01935958]
[1755177297035,2.18298293,4580.9,4579.7,4.801]
[1755177297249,3.0,4580.9,4579.8,5.163]
[1755177297415,0.4268,4581.0,4579.8,5.163]
[1755177297617,3.0,4580.9,4579.8,5.163]
[1755177297966,2.18312618,4580.6,4579.9,5.16]
[1755177298149,0.4268,4581.3,4579.9,5.16]
[1755177298338,3.0,4581.2,4579.9,0.9961]
[1755177298537,0.01,4581.5,4579.7,4.801]
[1755177298847,0.4268,4581.1,4579.8,5.157]
[1755177299018,0.4268,4581.9,4579.9,3.9062]
[1755177299224,2.18259512,4581.8,4579.9,6.08965143]
[1755177299419,0.4268,4581.9,4580.0,1.64872514]
[1755177300256,0.1088,4580.2,4579.9,1.65]
[1755177300953,0.1088,4580.2,4580.0,4.08386773]
[1755177301152,0.1088,4581.0,4580.1,0.1088]
[1755177301327,0.1088,4581.0,4580.1,2.8046]
[1755177301528,3.4268,4581.5,4580.2,5.15]
[1755177301740,0.1088,4580.4,4580.2,5.15]
[1755177302141,0.1088,4580.8,4580.3,2.2562]
[1755177302341,0.4268,4581.6,4580.2,5.15]
[1755177302554,0.1088,4580.5,4580.2,5.15]
[1755177302754,0.1088,4580.5,4576.9,0.4396]
[1755177302755,21.10747241,4580.1,4576.9,0.4396]
[1755177303068,3.0,4580.0,4577.3,2.6958]
[1755177303267,3.0,4579.9,4577.4,5.85418]
[1755177303568,2.18350146,4579.8,4577.4,5.85418]
[1755177303764,2.18350146,4579.8,4577.4,5.145]
[1755177303966,2.18459858,4577.5,4577.4,5.145]
[1755177304368,2.18459858,4577.5,4577.4,5.1458]
[1755177304736,2.18459858,4577.5,4577.4,0.0008]
[1755177304931,2.18379858,4577.5,4577.4,0.0008]
[1755177305563,2.18379858,4577.5,4575.1,2.2562]
[1755177305564,2.18379858,4577.5,4575.6,5.139]
[1755177305879,2.18379858,4577.5,4574.3,0.0752]
[1755177305880,3.0,4577.0,4574.3,0.0752]
[1755177306177,2.1856968,4575.2,4574.3,0.0752]
[1755177306476,24.10747241,4575.1,4574.3,0.0752]
[1755177306647,24.10747241,4575.1,4573.2,5.136]
[1755177306648,2.18658611,4573.4,4573.2,5.136]
[1755177306848,2.1865683,4573.4,4573.2,5.136]
[1755177307170,3.0,4574.2,4573.0,5.136]
[1755177307371,2.1858328,4575.0,4573.0,5.6497]
[1755177307558,2.18665736,4573.2,4573.0,5.6497]
[1755177307762,2.18665736,4573.2,4573.0,5.136]
[1755177307939,2.18668433,4573.2,4573.0,5.136]
[1755177308144,2.18684394,4572.8,4572.7,0.001]
[1755177308560,2.18684394,4572.8,4572.7,1e-08]
[1755177309161,5.131,4574.9,4572.7,1e-08]
[1755177309162,0.16024487,4576.7,4572.7,1e-08]
[1755177309358,21.10747241,4575.2,4572.7,0.51300001]
[1755177309559,21.10747241,4575.2,4572.7,1e-08]
[1755177309760,21.10747241,4575.2,4572.8,5.129]
[1755177309960,2.18574457,4575.1,4572.8,7.8248]
[1755177310275,21.10747241,4576.1,4572.8,7.3852]
[1755177310450,21.10747241,4577.0,4573.2,2.18665008]
[1755177310650,21.10747241,4577.0,4573.3,2.93633105]
[1755177310851,21.10747241,4577.0,4573.4,2.6958]
[1755177311053,3.0,4576.0,4573.4,2.6958]
[1755177311254,3.0,4575.1,4573.5,5.128]
[1755177311779,3.0,4574.0,4572.7,1e-08]
[1755177311951,2.18684394,4572.8,4572.7,1e-08]
[1755177313081,2.29644394,4572.8,4572.7,1e-08]
[1755177313483,0.1096,4572.8,4572.7,1e-08]
[1755177314280,0.1096,4572.8,4572.7,2.69580001]
[1755177314482,21.10747241,4575.9,4572.7,2.96538001]
[1755177314679,2.18684394,4572.8,4572.7,0.00080001]
[1755177314884,2.29644394,4572.8,4572.7,0.00080001]
[1755177315754,0.1096,4572.8,4572.7,0.00080001]
[1755177316085,2.29644394,4572.8,4572.7,0.00080001]
[1755177316487,2.29644394,4572.8,4570.6,1.766865]
[1755177316488,0.1096,4572.8,4570.6,1.766865]
[1755177316653,2.18751367,4571.4,4570.6,1.766865]
[1755177316849,2.29735295,4570.9,4570.6,1.766865]
[1755177317047,2.18799229,4570.4,4570.3,0.001]
[1755177317487,2.29759229,4570.4,4570.3,1e-08]
[1755177317784,2.29759229,4570.4,4569.5,0.001]
[1755177317785,5.1881838,4570.0,4569.9,1e-08]
[1755177317987,2.2977838,4570.0,4569.9,1e-08]
[1755177318496,5.11,4571.4,4568.6,0.001]
[1755177318790,3.0,4571.0,4568.6,0.001]
[1755177319294,3.0,4570.8,4570.3,0.001]
[1755177319604,3.0,4570.8,4568.6,0.001]
[1755177319605,3.0,4570.3,4568.6,0.001]
[1755177319748,2.18847113,4569.4,4568.6,0.001]
[1755177319951,2.18875853,4568.8,4566.5,2.2562]
[1755177320154,21.10747241,4568.9,4566.2,0.4396]
[1755177320452,2.18945357,4567.4,4566.2,0.4396]
[1755177320648,2.18945357,4567.4,4565.8,2.2562]
[1755177320854,3.0,4567.8,4565.4,0.001]
[1755177321074,2.18989192,4566.5,4565.4,0.001]
[1755177321812,2.18982622,4566.6,4565.4,0.001]
[1755177322140,2.18982622,4566.6,4566.3,1e-08]
[1755177322278,26.2973813,4566.4,4566.3,1e-08]
[1755177322609,2.19053251,4565.1,4565.0,1e-08]
[1755177323214,1.44,4565.1,4561.6,2.8403]
[1755177323429,1.44,4565.1,4561.7,5.64895895]
[1755177323593,1.368,4566.8,4561.9,3.0]
[1755177323776,3.0,4567.5,4562.1,3.0]
[1755177323980,3.0,4567.5,4562.0,2.86122021]
[1755177323981,3.0,4567.3,4562.2,7.9403]
[1755177324188,3.0,4567.4,4562.3,2.8393]
[1755177324418,3.0,4567.2,4562.4,4.29083611]
[1755177324624,1.36329993,4568.1,4562.6,5.19173278]
[1755177324795,5.101,4568.0,4562.7,7.9403]
[1755177324986,2.18947737,4567.3,4562.8,5.8393]
[1755177325177,3.0,4567.3,4563.8,2.19115039]
[1755177325378,2.18959516,4567.1,4563.9,3.05841504]
[1755177325612,5.099,4568.2,4564.1,3.0]
[1755177325818,2.18938094,4567.6,4564.2,2.8393]
[1755177326120,5.099,4567.6,4564.3,0.4693]
[1755177326288,2.18942943,4567.4,4564.3,0.4693]
[1755177326484,19.95452522,4567.1,4564.4,2.37]
[1755177326685,3.0,4566.9,4563.8,7.467]
[1755177326886,2.19108464,4564.0,4563.7,0.4693]
[1755177327081,3.0,4565.2,4563.1,2.37]
[1755177327281,3.0,4564.7,4563.1,2.37]
[1755177327509,19.95452522,4567.0,4563.2,0.49121444]
[1755177327709,5.19005278,4566.1,4563.3,2.37]
[1755177328043,2.19041514,4565.4,4563.4,0.4693]
[1755177328197,3.0,4566.5,4563.5,2.37]
[1755177328399,0.656867,4566.6,4563.6,0.4693]
[1755177328588,0.656867,4566.6,4563.6,0.75323]
[1755177328785,19.95452522,4565.8,4563.6,0.4693]
[1755177328986,33.0,4565.7,4562.9,0.4693]
[1755177329311,2.19150644,4563.1,4562.8,2.37]
[1755177329920,3.0,4564.0,4562.4,0.4693]
[1755177330122,2.19178082,4562.5,4562.4,0.4693]
[1755177330324,3.0,4563.8,4562.4,2.8393]
[1755177330484,3.0,4565.3,4562.5,0.4693]
[1755177330688,3.0,4565.5,4562.6,2.37]
[1755177330933,3.0,4566.3,4562.6,2.37]
[1755177331095,3.0,4566.1,4562.7,0.4693]
[1755177331407,2.19163671,4562.8,4562.7,0.4693]
[1755177331610,2.19178082,4562.5,4562.4,0.001]
[1755177332239,2.19178082,4562.5,4562.4,2.8403]
[1755177332733,0.4693,4563.0,4562.4,2.8411]
[1755177332898,5.085,4565.7,4562.5,0.4912178]
[1755177333101,19.95452522,4566.2,4562.6,2.37]
[1755177333300,0.657116,4565.1,4562.7,0.4693]
[1755177333596,2.19062849,4564.9,4562.8,2.37]
[1755177333802,2.1905805,4565.0,4562.8,2.37]
[1755177334022,2.84768723,4565.1,4562.8,2.37]
[1755177334223,2.19158868,4562.9,4562.8,2.37]
[1755177334429,2.19072292,4564.8,4562.8,2.8393]
[1755177334631,2.19158868,4562.9,4562.8,2.8393]
[1755177334818,2.19158868,4562.9,4562.8,0.4693]
[1755177335117,2.19082046,4564.5,4562.4,0.0018]
[1755177335328,2.19178082,4562.5,4562.4,0.0018]
[1755177335530,3.0,4563.6,4562.4,0.0018]
[1755177335743,2.19101246,4564.1,4562.4,0.0018]
[1755177335941,2.19178082,4562.5,4562.4,0.0018]
[1755177337854,4.815,4564.4,4559.3,2.8393]
[1755177337855,0.31520439,4563.6,4559.3,2.8393]
[1755177338043,0.16244502,4563.7,4560.4,2.8393]
[1755177338245,2.19223709,4561.6,4560.5,0.75333]
[1755177338419,2.19101246,4564.1,4560.6,2.86122693]
[1755177338620,2.19106047,4564.0,4560.7,0.4693]
[1755177338820,0.1096,4560.9,4560.7,0.4693]
[1755177339153,3.0,4564.3,4560.8,2.4796]
[1755177339320,3.2192,4564.2,4560.9,0.4693]
[1755177339521,3.2192,4564.2,4560.3,0.001]
[1755177339522,3.0,4563.2,4560.3,0.001]
[1755177339722,5.073,4564.8,4560.3,0.001]
[1755177339723,0.2192,4563.1,4560.3,0.001]
[1755177340043,2.1927599,4560.5,4560.3,0.001]
[1755177340653,2.19271581,4560.6,4560.4,2.8393]
[1755177340854,2.19278304,4560.5,4560.3,0.001]
[1755177341055,2.19278304,4560.5,4560.4,0.001]
[1755177341955,0.1,4561.2,4559.0,0.001]
[1755177342153,22.95452522,4561.4,4556.0,2.8393]
[1755177342154,2.19413726,4557.6,4556.0,2.8393]
[1755177342358,2.19413726,4557.6,4557.5,2.8403]
[1755177342662,2.19413726,4557.6,4557.5,1e-08]
[1755177343657,2.19413726,4557.6,4557.5,2.83930001]
[1755177343826,2.19413726,4557.6,4557.5,1e-08]
[1755177344253,2.19432985,4557.2,4557.1,1e-08]
[1755177344765,2.41252985,4557.2,4557.1,1e-08]
[1755177344969,2.41252985,4557.2,4552.8,2.19643614]
[1755177344970,3.0,4557.2,4553.0,4.817]
[1755177345126,3.0,4557.1,4554.9,2.8393]
[1755177345326,2.19536636,4555.1,4554.9,2.37]
[1755177345632,3.2182,4557.1,4554.5,5.061]
[1755177346038,3.0,4556.9,4554.5,5.061]
[1755177346360,20.17272522,4556.8,4553.8,2.37]
[1755177346567,0.16191744,4557.3,4553.8,0.28393]
[1755177346874,3.0,4555.8,4553.0,0.4693]
[1755177347077,2.19627107,4553.2,4553.0,0.4693]
[1755177347277,3.0,4555.6,4553.1,0.4693]
[1755177347574,0.02243448,4555.5,4553.1,0.4693]
[1755177347778,2.19623251,4553.3,4553.1,0.4693]
[1755177347981,3.0,4554.8,4552.4,0.4693]
[1755177348143,2.19656157,4552.6,4552.4,0.4693]
[1755177348481,2.19553428,4554.7,4552.5,0.4693]
[1755177348680,19.95452522,4555.9,4552.5,0.4693]
[1755177348681,0.2182,4555.0,4552.5,0.4693]
[1755177348844,2.19650228,4552.7,4552.5,0.4693]
[1755177349040,2.19649878,4552.7,4552.6,2.37]
[1755177349344,0.1096,4552.6,4552.2,2.37]
[1755177349544,0.1096,4552.6,4552.3,2.8393]
[1755177349752,0.1096,4552.6,4552.4,0.4693]
[1755177349995,0.658573,4555.5,4552.4,0.4693]
[1755177350209,2.19547847,4554.9,4552.4,0.4693]
[1755177350359,0.658573,4555.5,4552.4,0.4693]
[1755177350360,0.1096,4552.7,4552.4,0.4693]
[1755177350541,0.1096,4552.7,4552.5,0.4693]
[1755177350743,2.19618379,4553.4,4552.6,0.4693]
[1755177350967,2.19649878,4552.7,4552.6,0.4693]
[1755177351247,0.1096,4552.7,4551.8,0.4693]
[1755177351494,2.19667306,4552.4,4551.8,0.4693]
[1755177351779,0.1096,4552.7,4551.8,0.4693]
[1755177351978,0.02243448,4553.9,4551.9,2.68924]
[1755177352154,0.658573,4555.5,4552.0,0.4629]
[1755177352354,0.02243448,4555.4,4552.0,3.4629]
[1755177352701,0.02243448,4555.4,4552.2,3.0]
[1755177352850,0.02243448,4555.4,4552.3,2.865]
[1755177353174,0.02243448,4555.4,4552.4,6.6089]
[1755177353175,2.21765997,4555.4,4552.4,6.6089]
[1755177353374,2.19600946,4553.8,4552.5,2.865]
[1755177353575,2.19538968,4555.0,4552.6,0.4629]
[1755177353792,2.19548608,4554.8,4552.7,7.4551]
[1755177353956,2.19558248,4554.6,4552.8,0.4629]
[1755177354155,0.02243448,4554.5,4552.8,1.2547]
[1755177354340,0.02243448,4555.4,4552.8,0.4629]
[1755177354540,3.0,4555.2,4552.8,0.4629]
[1755177354790,0.02243448,4555.1,4552.8,0.4629]
[1755177355007,19.95452522,4554.2,4552.0,0.0008]
[1755177355304,2.19678829,4552.1,4552.0,0.0008]
[1755177355647,2.19678829,4552.1,4550.9,2.4021]
[1755177355648,2.19702961,4551.6,4550.9,2.4021]
[1755177355978,2.19702961,4551.6,4551.5,1e-08]
[1755177356180,2.21946409,4551.6,4551.5,1e-08]
[1755177356347,2.19702961,4551.6,4551.5,1e-08]
[1755177356984,2.19714286,4551.4,4551.1,1e-08]
[1755177357368,2.12202271,4551.2,4551.1,1e-08]
[1755177357959,2.14445719,4551.2,4551.1,1e-08]
[1755177358669,2.12202271,4551.2,4551.1,1e-08]
[1755177359076,0.4629,4551.6,4551.1,0.46290001]
[1755177359245,0.4629,4551.6,4551.1,1e-08]
[1755177359458,0.4629,4551.6,4551.2,0.4629]
[1755177359459,2.19717443,4551.3,4551.2,0.4629]
[1755177359659,0.48533448,4551.6,4551.2,0.4629]
[1755177359660,2.19707788,4551.5,4551.2,2.865]
[1755177359854,3.0,4552.6,4551.1,1e-08]
[1755177359855,0.02243448,4552.5,4551.1,1e-08]
[1755177360054,2.19722271,4551.2,4551.1,1e-08]
[1755177360357,2.21965719,4551.2,4551.1,1e-08]
[1755177361096,2.19722271,4551.2,4551.1,1e-08]
[1755177361393,2.19685106,4552.0,4551.1,1e-08]
[1755177361394,0.3278,4554.8,4551.1,2.86500001]
[1755177361693,2.19699542,4551.7,4551.2,0.50987222]
[1755177361854,4.59302028,4554.8,4551.3,2.69329722]
[1755177362061,2.19630581,4553.1,4551.3,2.69329722]
[1755177362359,0.658673,4553.2,4551.4,0.4629]
[1755177362360,2.19640229,4552.9,4551.4,0.4629]
[1755177362586,0.658673,4553.2,4551.2,0.025]
[1755177362587,2.19717443,4551.3,4551.2,0.025]
[1755177362895,2.19717443,4551.3,4551.2,2.8908]
[1755177363288,2.19717443,4551.3,4551.2,0.0258]
[1755177363593,3.1096,4551.4,4551.2,0.0258]
[1755177363594,0.1096,4551.4,4551.2,2.8908]
[1755177363811,0.1096,4551.4,4551.3,2.865]
[1755177364012,2.30672615,4551.4,4551.2,0.0258]
[1755177364309,5.19717443,4551.3,4551.2,1e-08]
[1755177364859,5.19717443,4551.3,4551.1,1e-08]
[1755177364860,3.0,4551.3,4551.1,1e-08]
[1755177365089,0.02243448,4551.2,4551.1,1e-08]
[1755177365292,0.02243448,4552.4,4551.1,1e-08]
[1755177365795,0.02243448,4552.4,4550.8,0.001]
[1755177365796,5.3975,4552.4,4550.8,1e-08]
[1755177365998,2.19701936,4551.7,4550.8,1e-08]
[1755177366199,0.02243448,4551.6,4549.8,0.4629]
[1755177366409,2.19828509,4549.1,4548.9,5.4989]
[1755177366614,2.19800502,4549.6,4549.0,2.865]
[1755177366764,2.19736755,4550.9,4549.0,2.865]
[1755177366979,2.19818869,4549.2,4549.1,0.2865]
[1755177367181,3.0,4550.3,4549.1,0.4629]
[1755177367380,2.19731927,4551.0,4549.1,0.4629]
[1755177367631,2.19731927,4551.0,4548.8,7.4371]
[1755177367632,2.3975,4551.4,4549.2,0.4629]
[1755177367935,2.19814037,4549.3,4549.2,2.865]
[1755177368249,0.02243448,4552.1,4549.2,2.865]
[1755177368514,2.7252,4553.6,4549.3,3.4848814]
[1755177368678,2.19630581,4553.1,4551.3,2.1971647]
[1755177368874,7.22816717,4555.5,4551.4,12.74697126]
[1755177368875,2.19538968,4555.0,4551.4,12.74697126]
[1755177369116,2.3975,4555.4,4551.4,12.74697126]
[1755177369117,2.19548608,4554.8,4551.5,7.897]
[1755177369278,2.19606465,4553.6,4551.6,2.865]
[1755177369474,0.658573,4553.7,4551.7,1.2322]
[1755177369712,2.19553428,4554.7,4551.7,0.4629]
[1755177369914,2.19693308,4551.8,4551.7,0.4629]
[1755177370115,2.19693308,4551.8,4551.0,0.4629]
[1755177370291,0.02243448,4552.9,4551.0,0.4629]
[1755177370292,2.19727098,4551.1,4551.0,0.4629]
[1755177370493,0.02243448,4551.9,4551.0,5.031]
[1755177370817,2.1965091,4552.7,4551.1,2.4021]
[1755177370981,2.19620934,4553.3,4551.1,2.865]
[1755177371182,0.02243448,4553.2,4551.1,2.865]
[1755177371505,0.02243448,4553.4,4551.2,0.4629]
[1755177371706,0.02243448,4553.4,4551.3,2.4021]
[1755177371903,0.658696,4553.6,4551.4,5.96847654]
[1755177372105,0.658696,4553.6,4552.3,2.19667867]
[1755177372416,0.658696,4553.6,4551.5,2.865]
[1755177372417,0.658696,4553.6,4552.4,12.722]